bitfinex/quotes_ETHUSD_20250708
["timestamp","ask_amount","ask_price","bid_price","bid_amount"]
[1751939642374,16.31098512,2531.5,2531.4,1e-08]
[1751939642576,14.90127865,2531.5,2531.4,1e-08]
[1751939642772,16.86856617,2531.5,2531.4,1e-08]
[1751939643168,6.86856617,2531.5,2531.4,1e-08]
[1751939643375,4.90127865,2531.5,2531.4,1e-08]
[1751939643968,0.35105152,2531.5,2531.4,1e-08]
[1751939644165,0.6,2531.6,2531.4,0.94790001]
[1751939645284,0.001,2531.7,2531.4,0.94790001]
[1751939645488,0.6,2531.6,2531.4,0.19680001]
[1751939645683,0.001,2531.7,2531.5,0.80782575]
[1751939645999,0.001,2531.7,2531.5,0.9844]
[1751939661052,0.001,2531.7,2531.6,4.72099295]
[1751939661364,0.001,2531.7,2531.6,16.60780121]
[1751939661524,0.001,2531.7,2531.6,12.63750826]
[1751939668333,0.001,2531.7,2531.6,16.58757936]
[1751939669745,0.001,2531.7,2531.6,12.63750826]
[1751939669945,0.001,2531.7,2531.6,16.58757936]
[1751939670760,0.001,2531.7,2531.6,12.63750826]
[1751939671773,0.001,2531.7,2531.6,13.23650826]
[1751939673977,0.001,2531.7,2531.6,12.63750826]
[1751939674162,0.001,2531.7,2531.6,13.23650826]
[1751939675293,0.001,2531.7,2531.6,3.23650826]
[1751939675445,0.001,2531.7,2531.5,0.1968]
[1751939675851,0.001,2531.7,2531.5,0.7958]
[1751939676468,0.001,2531.7,2531.5,0.1968]
[1751939676673,0.001,2531.7,2531.5,0.7958]
[1751939683456,0.001,2531.7,2531.5,0.1968]
[1751939683657,0.001,2531.7,2531.5,11.29338]
[1751939685183,0.001,2531.7,2531.6,0.80082185]
[1751939686113,0.001,2531.7,2531.6,1.3796]
[1751939689301,0.001,2531.7,2531.6,15.3296711]
[1751939689617,0.001,2531.7,2531.6,11.3796]
[1751939689916,0.001,2531.7,2531.6,13.43694895]
[1751939692925,0.001,2531.7,2531.6,12.83794895]
[1751939693097,0.001,2531.7,2531.6,12.65634895]
[1751939693278,0.001,2531.7,2531.6,2.65634895]
[1751939693482,0.001,2531.7,2531.6,0.599]
[1751939694730,0.001,2531.7,2531.5,0.1968]
[1751939694910,0.001,2531.7,2531.5,0.7958]
[1751939696844,0.001,2531.7,2531.5,0.1968]
[1751939702720,0.001,2531.7,2531.6,0.82652185]
[1751939702920,0.001,2531.7,2531.6,1.32386946]
[1751939703423,0.001,2531.7,2531.6,5.25371871]
[1751939703633,0.001,2531.7,2531.6,15.25371871]
[1751939705423,0.001,2531.7,2531.6,15.85271871]
[1751939708708,0.001,2531.7,2531.6,43.13479571]
[1751939709017,0.001,2531.7,2531.6,18.64242971]
[1751939710746,0.001,2531.7,2531.6,16.40271871]
[1751939710916,0.001,2531.7,2531.6,18.18642871]
[1751939711113,0.001,2531.7,2531.6,11.30364761]
[1751939711319,0.001,2531.7,2531.6,14.44741871]
[1751939711537,0.001,2531.7,2531.6,11.09634761]
[1751939712345,0.001,2531.7,2531.6,10.49734761]
[1751939712531,0.001,2531.7,2531.6,11.09634761]
[1751939713547,0.001,2531.7,2531.6,15.04641871]
[1751939714139,0.001,2531.7,2531.6,11.09634761]
[1751939715150,0.001,2531.7,2531.6,15.04641871]
[1751939715338,0.001,2531.7,2531.6,11.09634761]
[1751939716218,0.001,2531.7,2531.6,15.04641871]
[1751939716938,0.001,2531.7,2531.6,15.83281871]
[1751939718750,0.001,2531.7,2531.6,16.38281871]
[1751939720336,0.001,2531.7,2531.6,27.29892971]
[1751939721265,0.001,2532.6,2532.0,0.7864]
[1751939721470,0.001,2532.6,2532.1,5.83489194]
[1751939721768,0.001,2532.6,2532.5,4.14546732]
[1751939721935,0.001,2532.6,2532.5,0.1968]
[1751939722563,0.001,2532.6,2532.5,4.14546732]
[1751939722767,0.001,2532.6,2532.5,4.16565252]
[1751939722962,0.001,2532.6,2532.5,0.2169852]
[1751939723167,0.001,2532.6,2532.5,0.1968]
[1751939724243,0.001,2532.6,2532.5,1.06615825]
[1751939724636,0.001,2532.6,2532.5,1.08634345]
[1751939725838,0.001,2532.6,2532.5,1.06615825]
[1751939726043,0.001,2532.6,2532.5,0.1968]
[1751939726651,0.001,2532.6,2532.5,4.16565252]
[1751939727074,0.001,2532.6,2532.5,0.1968]
[1751939727253,0.001,2532.6,2532.5,4.14546732]
[1751939727459,0.001,2532.6,2532.5,14.14546732]
[1751939727686,0.001,2532.6,2532.5,16.12588297]
[1751939728377,0.001,2532.6,2532.5,22.51617877]
[1751939728867,0.001,2532.6,2532.5,49.72941777]
[1751939729377,0.001,2532.6,2532.5,51.18941777]
[1751939729678,0.001,2532.6,2532.5,44.63449177]
[1751939730067,1e-08,2532.6,2532.5,44.63449177]
[1751939730646,0.0426942,2533.3,2532.8,4.49819962]
[1751939730872,0.0426942,2533.3,2533.2,13.94757618]
[1751939731174,0.0426942,2533.3,2533.2,14.54657618]
[1751939731382,0.0426942,2533.3,2533.2,15.33347618]
[1751939736079,0.0426942,2533.3,2533.2,15.88347618]
[1751939737379,0.0436942,2533.3,2533.2,15.88347618]
[1751939737582,0.0436942,2533.3,2533.2,18.78295265]
[1751939738469,0.0436942,2533.3,2533.2,18.97975265]
[1751939742889,0.0436942,2533.3,2533.2,18.38075265]
[1751939743096,0.0436942,2533.3,2533.2,18.97975265]
[1751939746361,0.0436942,2533.3,2533.2,18.38075265]
[1751939746565,0.0436942,2533.3,2533.2,17.64285265]
[1751939746796,0.0436942,2533.3,2533.2,17.04385265]
[1751939747000,0.0436942,2533.3,2533.2,17.64285265]
[1751939748098,0.0436942,2533.3,2533.2,17.04385265]
[1751939748311,0.0436942,2533.3,2533.2,17.64285265]
[1751939748806,0.0436942,2533.3,2533.2,13.69527647]
[1751939749007,0.0436942,2533.3,2533.2,17.64285265]
[1751939750507,0.0436942,2533.3,2533.2,13.09627647]
[1751939750668,0.0436942,2533.3,2533.2,13.69527647]
[1751939750864,0.0436942,2533.3,2533.2,13.09627647]
[1751939751137,0.0436942,2533.3,2533.2,0.7958]
[1751939751439,0.0436942,2533.3,2533.2,10.7958]
[1751939752799,0.0436942,2533.3,2533.2,0.7958]
[1751939755035,0.0436942,2533.3,2533.2,10.7958]
[1751939755722,0.0436942,2533.3,2533.2,0.7958]
[1751939758136,0.8745942,2533.3,2533.2,0.1968]
[1751939758828,0.8745942,2533.3,2533.0,0.599]
[1751939759023,0.8745942,2533.3,2533.1,0.1968]
[1751939759599,0.0493447,2533.2,2533.1,0.1968]
[1751939759804,0.7568,2533.2,2533.1,0.1968]
[1751939771928,0.0436942,2533.3,2533.1,0.1968]
[1751939773957,0.8793447,2533.2,2532.8,0.002]
[1751939774151,0.83,2533.1,2532.8,0.002]
[1751939774460,0.83,2532.9,2532.8,0.002]
[1751939782351,0.8104,2533.1,2532.8,0.002]
[1751939782554,0.001,2533.2,2533.0,0.1968]
[1751939783054,0.001,2533.2,2533.1,0.1968]
[1751939783742,0.001,2533.2,2532.9,0.1968]
[1751939783743,0.8607447,2533.2,2532.9,0.1968]
[1751939784167,5.31319945,2533.2,2532.8,0.002]
[1751939784469,5.50999945,2533.2,2532.8,0.1988]
[1751939784779,0.8104,2533.0,2532.8,0.1988]
[1751939785082,0.85974859,2533.0,2532.8,0.1988]
[1751939785881,0.8104,2533.0,2532.8,0.1988]
[1751939790358,0.04935054,2532.9,2532.8,0.002]
[1751939793790,3.99739428,2532.9,2532.8,0.002]
[1751939793991,0.04935054,2532.9,2532.8,0.002]
[1751939794989,3.99739428,2532.9,2532.8,0.002]
[1751939795446,0.04935054,2532.9,2532.8,0.002]
[1751939796295,4.76369428,2532.9,2532.8,0.002]
[1751939796467,6.38031329,2532.9,2532.8,0.002]
[1751939797992,6.33096275,2532.9,2532.8,0.002]
[1751939798162,6.38031329,2532.9,2532.8,0.002]
[1751939798770,16.38031329,2532.9,2532.8,0.002]
[1751939798969,16.65699888,2532.9,2532.8,0.002]
[1751939799393,16.33096275,2532.9,2532.8,0.002]
[1751939799792,16.88096275,2532.9,2532.8,0.002]
[1751939800412,18.62274522,2532.9,2532.8,0.002]
[1751939801196,25.29744102,2532.9,2532.8,0.002]
[1751939802474,25.29844102,2532.9,2532.8,0.002]
[1751939803301,25.29821092,2532.9,2532.8,0.002]
[1751939805586,23.24021092,2532.9,2532.8,0.002]
[1751939805796,25.29821092,2532.9,2532.8,0.002]
[1751939806321,25.29821092,2532.9,2532.8,1e-08]
[1751939807598,0.55,2532.6,2531.7,0.002]
[1751939807823,4.70844423,2531.9,2531.7,0.002]
[1751939808121,14.70787547,2532.3,2531.7,0.002]
[1751939808296,0.599,2532.2,2531.8,0.7764]
[1751939808500,0.64836418,2532.2,2531.8,0.7764]
[1751939809320,4.59753801,2532.2,2531.8,0.7764]
[1751939810922,3.94941322,2532.1,2531.7,0.002]
[1751939811120,0.64836808,2532.0,2531.7,0.002]
[1751939812000,3.94971156,2531.9,2531.7,0.002]
[1751939812204,3.99913104,2531.8,2531.7,0.002]
[1751939812402,0.04937198,2531.8,2531.7,0.002]
[1751939813823,3.99909144,2531.9,2531.7,0.002]
[1751939813997,0.04937003,2531.9,2531.7,0.002]
[1751939814499,5.14198698,2532.0,2531.7,0.002]
[1751939815025,0.599,2531.9,2531.8,0.7748]
[1751939818223,0.599,2531.9,2531.7,0.1988]
[1751939824823,0.599,2532.0,2531.7,0.1988]
[1751939826980,0.04936613,2532.1,2531.7,0.1988]
[1751939833081,0.04936613,2532.1,2531.8,0.8254]
[1751939834176,0.64836613,2532.1,2531.8,0.8254]
[1751939834990,0.64836613,2532.1,2531.7,0.1988]
[1751939835192,9.94825486,2531.8,2531.7,0.002]
[1751939838416,10.54725486,2531.8,2531.7,0.002]
[1751939838716,4.54875906,2531.8,2531.7,0.002]
[1751939839112,4.59813104,2531.8,2531.7,0.002]
[1751939842081,3.99913104,2531.8,2531.7,0.002]
[1751939842421,4.79400727,2531.8,2531.7,0.002]
[1751939843407,9.24900727,2531.8,2531.7,0.002]
[1751939843715,9.19963529,2531.8,2531.7,0.002]
[1751939844021,4.455,2531.8,2531.7,0.002]
[1751939844189,9.15705906,2531.8,2531.7,0.002]
[1751939845024,20.04367566,2531.8,2531.7,0.002]
[1751939845215,21.45696082,2531.8,2531.7,0.002]
[1751939845602,21.46956082,2531.8,2531.7,0.002]
[1751939845801,23.19400442,2531.8,2531.7,0.002]
[1751939847900,24.09400442,2531.8,2531.7,0.002]
[1751939848998,24.10471255,2531.8,2531.7,0.002]
[1751939851929,24.11111711,2531.8,2531.7,0.002]
[1751939854913,23.75738782,2531.8,2531.7,0.002]
[1751939855212,24.11095539,2531.8,2531.7,0.002]
[1751939855412,24.11097406,2531.8,2531.7,0.002]
[1751939856321,23.75738782,2531.8,2531.7,0.002]
[1751939859038,23.75738782,2531.8,2531.7,1e-08]
[1751939859334,25.87649145,2531.8,2531.7,1e-08]
[1751939859717,24.10980036,2531.8,2531.7,1e-08]
[1751939860540,25.87649145,2531.8,2531.7,1e-08]
[1751939862134,24.10980036,2531.8,2531.7,1e-08]
[1751939862340,25.87649145,2531.8,2531.7,1e-08]
[1751939863707,24.10980036,2531.8,2531.7,1e-08]
[1751939864275,13.94991507,2531.7,2531.6,1e-08]
[1751939864551,16.93003178,2531.7,2531.6,1e-08]
[1751939866365,19.46652287,2531.7,2531.6,1e-08]
[1751939866575,19.93572293,2531.5,2531.4,1e-08]
[1751939866853,24.69842063,2531.5,2531.4,1e-08]
[1751939867061,26.42286423,2531.5,2531.4,1e-08]
[1751939868268,26.42045573,2531.5,2531.4,1e-08]
[1751939870341,26.61804319,2531.5,2531.4,1e-08]
[1751939870660,26.97292398,2531.5,2531.4,1e-08]
[1751939874388,28.73651981,2531.5,2531.4,1e-08]
[1751939875163,26.97292398,2531.5,2531.4,1e-08]
[1751939877491,26.97494005,2531.5,2531.4,1e-08]
[1751939878267,28.73853588,2531.5,2531.4,1e-08]
[1751939878676,28.74030198,2531.5,2531.4,1e-08]
[1751939879360,28.7403063,2531.5,2531.4,1e-08]
[1751939880677,26.97494005,2531.5,2531.4,1e-08]
[1751939881296,26.97844369,2531.5,2531.4,1e-08]
[1751939886897,26.97961994,2531.5,2531.4,1e-08]
[1751939887499,29.33230042,2531.5,2531.4,1e-08]
[1751939888316,29.33229887,2531.5,2531.4,1e-08]
[1751939889909,29.33240242,2531.5,2531.4,1e-08]
[1751939890310,26.97972194,2531.5,2531.4,1e-08]
[1751939891691,17.44722614,2531.5,2531.4,1e-08]
[1751939891891,17.18178254,2531.5,2531.4,1e-08]
[1751939892091,20.17778254,2531.5,2531.4,1e-08]
[1751939893327,1.77355541,2531.5,2531.4,0.80410001]
[1751939893531,3.40805658,2531.5,2531.4,0.80410001]
[1751939893732,7.35828371,2531.5,2531.4,0.80410001]
[1751939896407,19.69941968,2531.5,2531.4,1e-08]
[1751939896608,19.65004185,2531.5,2531.4,1e-08]
[1751939898426,21.06179224,2531.5,2531.4,1e-08]
[1751939899141,27.06563955,2531.5,2531.4,1e-08]
[1751939899355,27.87603955,2531.5,2531.4,1e-08]
[1751939899925,27.86532177,2531.5,2531.4,1e-08]
[1751939900518,27.86526078,2531.5,2531.4,1e-08]
[1751939901154,29.62987253,2531.5,2531.4,1e-08]
[1751939901637,23.62602522,2531.5,2531.4,1e-08]
[1751939907253,23.62928781,2531.5,2531.4,1e-08]
[1751939913953,19.82288781,2531.5,2531.4,1e-08]
[1751939914252,31.08633512,2531.5,2531.4,1e-08]
[1751939914553,29.32172337,2531.5,2531.4,1e-08]
[1751939915557,26.32572337,2531.5,2531.4,1e-08]
[1751939915758,22.51327606,2531.5,2531.4,1e-08]
[1751939916330,28.51712337,2531.5,2531.4,1e-08]
[1751939916532,30.28162536,2531.5,2531.4,1e-08]
[1751939916832,28.51712337,2531.5,2531.4,1e-08]
[1751939917151,4.50053924,2531.3,2531.2,0.0426942]
[1751939917464,9.31976616,2531.3,2531.2,0.0426942]
[1751939917666,9.27015284,2531.3,2531.2,0.0426942]
[1751939918530,15.27400015,2531.3,2531.2,0.0426942]
[1751939918937,17.03832243,2531.3,2531.2,0.0426942]
[1751939919265,17.06513612,2531.3,2531.2,0.0426942]
[1751939919463,17.06595318,2531.3,2531.2,0.0426942]
[1751939920349,18.83027546,2531.3,2531.2,0.0426942]
[1751939920661,17.06595318,2531.3,2531.2,0.0426942]
[1751939921068,17.96595318,2531.3,2531.2,0.0426942]
[1751939921240,17.06595318,2531.3,2531.2,0.0426942]
[1751939922580,11.06210587,2531.3,2531.2,0.0426942]
[1751939923148,11.06203789,2531.3,2531.2,0.0426942]
[1751939923489,11.06167355,2531.3,2531.2,0.0426942]
[1751939925065,11.84817355,2531.3,2531.2,0.0426942]
[1751939925361,3.95131974,2530.8,2530.7,0.8419942]
[1751939925558,8.81861609,2530.8,2530.7,0.8419942]
[1751939925872,8.7692246,2530.8,2530.7,0.8419942]
[1751939926561,4.81790486,2530.8,2530.7,0.8419942]
[1751939927461,3.04539149,2530.8,2530.7,0.8419942]
[1751939927653,2.996,2530.8,2530.7,1.52677835]
[1751939927857,0.04938759,2531.0,2530.7,1.52677835]
[1751939927858,0.04938759,2531.0,2530.8,0.8108]
[1751939928179,3.35984829,2530.9,2530.8,0.8108]
[1751939928781,2.996,2530.9,2530.8,0.8108]
[1751939934222,0.24618759,2531.0,2530.8,0.8108]
[1751939934516,2.996,2530.9,2530.8,0.8108]
[1751939936996,2.996,2530.9,2530.8,0.8128]
[1751939938709,0.24618759,2531.0,2530.8,0.8128]
[1751939939019,2.996,2530.9,2530.8,0.8128]
[1751939940294,2.996,2531.0,2530.8,0.8128]
[1751939940597,2.996,2531.3,2531.0,0.8071]
[1751939940794,0.1968,2531.4,2531.1,6.00384731]
[1751939940994,2.996,2531.3,2531.2,0.8071]
[1751939943319,0.1968,2531.4,2531.2,0.8071]
[1751939943504,2.996,2531.3,2531.2,0.8071]
[1751939943903,3.04538174,2531.3,2531.2,0.8071]
[1751939944114,7.19272098,2531.3,2530.9,0.8071]
[1751939944314,0.1968,2531.1,2530.9,0.8071]
[1751939944517,3.04538759,2531.0,2530.9,0.8071]
[1751939948531,0.04938759,2531.0,2530.9,0.8071]
[1751939948839,2.995,2531.0,2530.9,0.8071]
[1751939949014,2.995,2531.0,2530.9,1.51234415]
[1751939949412,2.995,2531.0,2530.9,0.8071]
[1751939949615,3.04438759,2531.0,2530.8,0.002]
[1751939950211,3.95116361,2530.9,2530.8,0.002]
[1751939951345,4.50116361,2530.9,2530.8,0.002]
[1751939951842,4.55055315,2530.9,2530.8,0.002]
[1751939952039,5.84600975,2530.9,2530.8,0.002]
[1751939952229,1.89484614,2530.9,2530.8,0.002]
[1751939952430,4.50116361,2530.9,2530.8,0.002]
[1751939955428,4.55055315,2530.9,2530.8,0.002]
[1751939956517,0.59938954,2530.9,2530.8,0.002]
[1751939956716,0.55,2530.9,2530.8,0.002]
[1751939956922,0.55,2530.9,2530.8,0.8182]
[1751939957127,1.458,2531.4,2530.8,0.8182]
[1751939957322,1.458,2531.4,2531.0,0.7842]
[1751939957323,0.1968,2531.3,2531.0,0.7842]
[1751939957621,2.996,2531.2,2531.0,0.7842]
[1751939959329,3.24218174,2531.3,2531.0,0.7862]
[1751939959720,3.24318174,2531.3,2531.0,0.7862]
[1751939962229,3.1938,2531.3,2531.0,0.7862]
[1751939962429,3.1938,2531.3,2531.0,1.55575637]
[1751939962859,3.1928,2531.3,2531.0,1.55575637]
[1751939963263,0.1978,2531.3,2531.1,0.8104]
[1751939963454,0.001,2531.3,2531.2,0.1968]
[1751939968870,4.00095356,2531.3,2531.1,0.8104]
[1751939969034,0.24718174,2531.3,2531.1,0.8104]
[1751939975782,0.55,2531.2,2531.0,0.002]
[1751939976073,3.59438564,2531.1,2531.0,0.002]
[1751939976437,7.54523704,2531.1,2531.0,0.002]
[1751939977271,9.00323704,2531.1,2531.0,0.002]
[1751939977464,10.35897757,2531.1,2531.0,0.002]
[1751939979047,10.7117256,2531.1,2531.0,0.002]
[1751939979677,10.35897757,2531.1,2531.0,0.002]
[1751939980339,11.77045978,2531.1,2531.0,0.002]
[1751939980547,12.58495978,2531.1,2531.0,0.002]
[1751939980879,12.9376906,2531.1,2531.0,0.002]
[1751939981579,12.9377427,2531.1,2531.0,0.002]
[1751939982585,12.58495978,2531.1,2531.0,0.002]
[1751939982886,12.93782707,2531.1,2531.0,0.002]
[1751939983045,22.93782707,2531.1,2531.0,0.002]
[1751939986174,22.94142063,2531.1,2531.0,0.002]
[1751939987258,21.52993842,2531.1,2531.0,0.002]
[1751939988775,17.07693842,2531.1,2531.0,0.002]
[1751939988977,21.52993842,2531.1,2531.0,0.002]
[1751940001605,21.53078619,2531.1,2531.0,0.002]
[1751940002177,22.94133833,2531.1,2531.0,0.002]
[1751940004242,18.48833833,2531.1,2531.0,0.002]
[1751940004517,22.94133833,2531.1,2531.0,0.002]
[1751940005293,18.48833833,2531.1,2531.0,0.002]
[1751940005615,22.94133833,2531.1,2531.0,0.002]
[1751940006320,18.48833833,2531.1,2531.0,0.002]
[1751940006479,22.94133833,2531.1,2531.0,0.002]
[1751940021841,3.72298693,2531.1,2531.0,0.002]
[1751940022042,0.40669426,2531.1,2531.0,0.7701]
[1751940022283,3.1918,2531.1,2531.0,0.7701]
[1751940022962,3.24118564,2531.1,2531.0,0.7701]
[1751940023145,7.19203704,2531.1,2531.0,0.7701]
[1751940023545,8.09536484,2531.1,2531.0,0.7701]
[1751940023845,8.0459792,2531.1,2531.0,0.7701]
[1751940024274,4.0951278,2531.1,2531.0,0.7701]
[1751940024487,3.79118564,2531.1,2531.0,0.7701]
[1751940024859,4.14316684,2531.1,2531.0,0.7701]
[1751940025262,3.79118564,2531.1,2531.0,0.7701]
[1751940026581,4.14308723,2531.1,2531.0,0.7701]
[1751940027178,4.14308723,2531.1,2531.0,0.002]
[1751940027179,8.09393863,2531.1,2531.0,0.002]
[1751940027383,19.39499309,2531.1,2531.0,0.002]
[1751940027684,20.80828725,2531.1,2531.0,0.002]
[1751940030183,20.8070567,2531.1,2531.0,0.002]
[1751940031587,21.5767567,2531.1,2531.0,0.002]
[1751940031785,23.34232557,2531.1,2531.0,0.002]
[1751940032287,21.27471092,2530.9,2530.8,0.002]
[1751940032486,27.7995174,2530.9,2530.8,0.002]
[1751940033259,26.03367612,2530.9,2530.8,0.002]
[1751940033661,27.7995174,2530.9,2530.8,0.002]
[1751940035792,27.78780573,2530.9,2530.8,0.002]
[1751940035990,29.13824583,2530.9,2530.8,0.002]
[1751940036387,27.37240455,2530.9,2530.8,0.002]
[1751940038405,21.36855724,2530.9,2530.8,0.002]
[1751940038785,21.36829003,2530.9,2530.8,0.002]
[1751940040892,22.82529003,2530.9,2530.8,0.002]
[1751940041583,22.27529003,2530.9,2530.8,0.002]
[1751940041892,22.05559003,2530.9,2530.8,0.002]
[1751940042093,14.55942642,2530.9,2530.8,0.002]
[1751940042266,18.74185577,2530.9,2530.8,0.002]
[1751940042693,11.79569216,2530.9,2530.8,0.002]
[1751940042896,5.3448997,2530.9,2530.8,0.002]
[1751940043194,5.05138954,2530.9,2530.8,0.002]
[1751940043579,9.00255315,2530.9,2530.8,0.002]
[1751940043902,8.95316361,2530.9,2530.8,0.002]
[1751940044304,9.29471665,2530.9,2530.8,0.002]
[1751940044502,5.34355304,2530.9,2530.8,0.002]
[1751940044818,5.05138954,2530.9,2530.8,0.002]
[1751940045180,2.05638954,2530.9,2530.8,0.002]
[1751940045390,5.05138954,2530.9,2530.8,0.002]
[1751940048691,9.00255315,2530.9,2530.8,0.002]
[1751940048924,10.24852334,2530.9,2530.8,0.002]
[1751940049113,5.002,2530.9,2530.8,0.002]
[1751940049440,9.00255315,2530.9,2530.8,0.002]
[1751940049615,8.95316361,2530.9,2530.8,0.002]
[1751940050600,5.002,2530.9,2530.8,0.002]
[1751940050805,5.05138954,2530.9,2530.8,0.002]
[1751940051501,9.00255315,2530.9,2530.8,0.002]
[1751940051699,8.95316361,2530.9,2530.8,0.002]
[1751940052704,5.002,2530.9,2530.8,0.002]
[1751940052918,17.01000977,2530.9,2530.8,0.002]
[1751940053090,27.34814689,2530.9,2530.8,0.002]
[1751940053300,28.75882214,2530.9,2530.8,0.002]
[1751940055229,22.75497483,2530.9,2530.8,0.002]
[1751940057698,22.75517829,2530.9,2530.8,0.002]
[1751940061736,21.34450304,2530.9,2530.8,0.002]
[1751940061936,22.75679865,2530.9,2530.8,0.002]
[1751940062835,22.75950171,2530.9,2530.8,0.002]
[1751940064335,24.52487123,2530.9,2530.8,0.002]
[1751940065043,22.75950171,2530.9,2530.8,0.002]
[1751940065924,22.75998701,2530.9,2530.8,0.002]
[1751940068029,22.76005775,2530.9,2530.8,0.002]
[1751940068653,22.77082881,2530.9,2530.8,0.002]
[1751940068856,22.7708232,2530.9,2530.8,0.002]
[1751940069525,24.53678731,2530.9,2530.8,0.002]
[1751940070160,4.50210054,2530.3,2530.2,0.0426942]
[1751940070360,20.71876128,2530.3,2530.2,0.0426942]
[1751940070558,20.71876128,2530.3,2530.2,0.8747942]
[1751940070559,3.77166074,2530.3,2530.2,0.8747942]
[1751940070871,9.30590963,2530.3,2530.2,0.8747942]
[1751940071227,20.71812155,2530.3,2530.2,0.8747942]
[1751940071453,26.72174647,2530.3,2530.2,0.0426942]
[1751940071656,27.50904647,2530.3,2530.2,0.0426942]
[1751940072360,27.50904647,2530.3,2530.2,1e-08]
[1751940072361,27.52974647,2530.3,2530.2,1e-08]
[1751940072655,23.29160371,2530.3,2530.2,1e-08]
[1751940073564,21.52589916,2530.3,2530.2,1e-08]
[1751940074060,21.5246474,2530.3,2530.2,1e-08]
[1751940074430,21.17283831,2530.3,2530.2,1e-08]
[1751940074660,21.52547036,2530.3,2530.2,1e-08]
[1751940077979,27.52900881,2530.3,2530.2,1e-08]
[1751940078343,15.7151615,2530.3,2530.2,1e-08]
[1751940078652,18.75942373,2530.3,2530.2,0.76970001]
[1751940078854,1.457,2530.4,2530.2,0.76970001]
[1751940079153,2.998,2530.3,2530.2,1.44705474]
[1751940079329,3.95140695,2530.8,2530.2,0.67735474]
[1751940079533,1.457,2530.7,2530.5,6.00384731]
[1751940079733,1.457,2530.7,2530.6,0.808]
[1751940079936,4.457,2530.7,2530.6,1.4912109]
[1751940080136,4.457,2530.7,2530.6,0.808]
[1751940080829,3.0,2530.7,2530.6,0.808]
[1751940081046,0.55,2530.7,2530.6,0.808]
[1751940081247,3.55,2530.7,2530.6,0.808]
[1751940081427,7.50147587,2530.7,2530.6,0.808]
[1751940081845,0.55,2530.6,2530.4,0.7769]
[1751940082049,7.74904219,2530.5,2530.4,0.7769]
[1751940082245,4.50195184,2530.4,2530.2,0.76870001]
[1751940082474,3.79719735,2530.5,2530.2,0.76870001]
[1751940082475,3.05140125,2530.3,2530.2,0.76870001]
[1751940082869,7.55350179,2530.3,2530.2,0.76870001]
[1751940083059,7.55350179,2530.3,2530.2,1e-08]
[1751940083986,17.90985924,2530.3,2530.2,1e-08]
[1751940084149,17.50410054,2530.3,2530.2,1e-08]
[1751940084782,19.64970626,2530.3,2530.2,1e-08]
[1751940085077,25.65355357,2530.3,2530.2,1e-08]
[1751940085289,26.00990429,2530.3,2530.2,1e-08]
[1751940086791,27.41909629,2530.3,2530.2,1e-08]
[1751940088093,28.18849629,2530.3,2530.2,1e-08]
[1751940088391,28.18849629,2530.3,2529.7,0.0446942]
[1751940088392,14.50288165,2529.8,2529.7,0.0446942]
[1751940088586,20.72665775,2529.8,2529.7,0.0446942]
[1751940088792,19.31823237,2529.8,2529.7,0.0446942]
[1751940091157,0.35635072,2529.8,2529.7,0.8122942]
[1751940091358,3.007,2529.8,2529.7,0.8122942]
[1751940091999,6.95988165,2529.8,2529.7,0.8122942]
[1751940092163,3.007,2529.8,2529.7,0.8122942]
[1751940095261,3.006,2529.8,2529.7,0.8122942]
[1751940101871,3.004,2529.8,2529.7,0.8122942]
[1751940102606,1.463,2530.0,2529.7,0.8122942]
[1751940102909,0.001,2530.3,2530.0,3.95246683]
[1751940103109,0.001,2530.3,2530.2,10.78890404]
[1751940103289,0.001,2530.3,2530.2,10.98650404]
[1751940103982,0.001,2530.3,2530.2,20.98650404]
[1751940104729,1.463,2530.9,2530.6,0.7982]
[1751940104925,3.007,2531.0,2530.8,0.7982]
[1751940105419,0.001,2531.0,2530.8,0.7982]
[1751940111016,4.50116361,2530.9,2530.8,0.7982]
[1751940111318,3.95190193,2530.5,2530.3,0.1976]
[1751940111517,6.95596163,2530.4,2530.1,0.9623]
[1751940111812,7.00536093,2530.4,2530.1,0.9623]
[1751940113128,3.95210932,2530.3,2530.1,0.9623]
[1751940113281,0.0494032,2530.2,2529.9,0.8226]
[1751940113590,3.005,2530.1,2529.9,0.8226]
[1751940127107,3.005,2530.1,2529.9,0.8428851]
[1751940127298,3.95297115,2530.4,2530.0,0.1976]
[1751940127638,3.002,2530.3,2530.0,0.1976]
[1751940128432,0.0494032,2530.2,2530.0,0.1976]
[1751940128635,4.19936721,2530.2,2529.7,1.0433942]
[1751940128799,0.2470032,2530.2,2529.7,0.2422942]
[1751940129732,4.19936032,2530.2,2529.7,0.2422942]
[1751940131104,0.55,2529.9,2529.7,0.0446942]
[1751940131436,0.7476,2529.9,2529.7,0.0446942]
[1751940132234,0.55,2530.2,2529.8,0.7638]
[1751940132402,0.1976,2530.1,2529.8,0.7638]
[1751940133704,0.24700516,2530.1,2529.8,0.7638]
[1751940136517,0.24700516,2530.1,2529.7,0.2422942]
[1751940137532,4.19944312,2530.1,2529.7,0.2422942]
[1751940138059,4.19944312,2530.1,2529.8,0.002]
[1751940142252,0.24700516,2530.1,2529.8,0.002]
[1751940142551,3.001,2530.0,2529.8,0.002]
[1751940144830,3.1986,2530.0,2529.8,0.002]
[1751940145152,3.0,2530.1,2529.9,0.81678821]
[1751940145455,3.0,2530.1,2529.9,1.48374436]
[1751940145641,3.0,2530.1,2529.9,0.7965]
[1751940146154,3.0,2530.1,2529.8,0.002]
[1751940146354,0.04940711,2530.0,2529.8,0.002]
[1751940146730,7.00190479,2530.1,2529.8,0.002]
[1751940147144,3.04940516,2530.1,2529.8,0.002]
[1751940147328,7.00183917,2530.1,2529.8,0.002]